bitfinex-derivatives/quotes_SOLF0:USTF0_20251020
["timestamp","ask_amount","ask_price","bid_price","bid_amount"]
[1761001878390,2.79,190.13,190.02,2.62]
[1761001878596,2.79,190.1,190.02,2.62]
[1761001878891,7.5234,190.1,190.02,2.62]
[1761001879988,2.79,190.09,190.02,7.3551]
[1761001880190,7.5236,190.09,190.03,2.62]
[1761001880492,2.79,190.08,190.03,2.62]
[1761001881083,2.79,190.13,190.03,2.62]
[1761001881389,2.79,190.06,189.99,2.62]
[1761001881890,2.79,190.05,189.99,2.62]
[1761001882785,2.79,190.1,189.99,2.62]
[1761001883395,2.79,190.13,190.0,2.62]
[1761001884996,2.79,190.1,190.03,7.355]
[1761001886887,2.79,190.1,190.04,2.62]
[1761001893597,2.64,190.07,189.98,2.79]
[1761001894504,2.64,190.07,190.0,2.79]
[1761001895003,2.64,190.07,190.02,2.79]
[1761001896403,2.64,190.06,189.99,7.5259]
[1761001897202,2.64,190.06,190.0,2.79]
[1761001898808,2.64,190.03,190.0,2.79]
[1761001900508,2.64,190.03,189.98,2.79]
[1761001902005,9.4651,190.13,189.92,2.79]
[1761001902006,4.39471449,189.99,189.92,2.79]
[1761001902305,2.64,189.98,189.92,2.79]
[1761001902606,4.39471449,189.98,189.92,2.79]
[1761001902999,2.64,189.97,189.92,2.79]
[1761001903204,2.64,189.95,189.92,2.79]
[1761001904404,1.75471449,189.94,189.89,2.79]
[1761001904715,2.64,189.93,189.89,2.79]
[1761001906911,1.75471449,189.9,189.8,2.79]
[1761001907215,4.39471449,189.88,189.8,2.79]
[1761001908018,1.75471449,189.9,189.81,2.79]
[1761001908805,1.75471449,189.9,189.83,2.79]
[1761001909308,2.64,189.89,189.83,2.79]
[1761001910518,2.64,189.84,189.75,2.79]
[1761001910725,4.39471449,189.81,189.75,2.79]
[1761001911514,1.75471449,189.79,189.72,2.79]
[1761001911824,1.75471449,189.75,189.66,1.75471449]
[1761001912026,4.39471449,189.75,189.67,2.79]
[1761001912327,1.75471449,189.78,189.7,2.79]
[1761001912828,2.64,189.79,189.72,2.79]
[1761001913015,2.64,189.88,189.74,1.75471449]
[1761001913323,1.75471449,189.82,189.75,2.79]
[1761001914029,1.75471449,189.82,189.76,7.5315]
[1761001915623,2.64,189.83,189.76,2.79]
[1761001915824,4.39471449,189.81,189.76,2.79]
[1761001916826,1.75471449,189.83,189.76,2.79]
[1761001917228,1.75471449,189.84,189.76,2.79]
[1761001918226,1.75471449,189.84,189.77,2.8]
[1761001919229,1.75471449,189.84,189.77,7.5413]
[1761001919418,4.42471449,189.84,189.77,7.5413]
[1761001921017,4.42471449,189.84,189.77,2.8]
[1761001921224,4.42471449,189.84,189.78,4.741]
[1761001921624,4.42471449,189.84,189.78,7.541]
[1761001921826,2.67,189.84,189.78,7.541]
[1761001922132,4.42471449,189.88,189.8,2.8]
[1761001922336,2.67,189.91,189.85,4.55471449]
[1761001922528,2.67,189.91,189.87,1.75471449]
[1761001922727,2.67,189.91,189.87,4.55471449]
[1761001923829,2.67,189.91,189.87,2.8]
[1761001924025,2.67,189.91,189.86,1.75471449]
[1761001924929,2.67,189.91,189.86,4.55471449]
[1761001925638,2.67,189.91,189.86,1.75471449]
[1761001927937,2.67,189.91,189.86,4.55471449]
[1761001933149,2.67,189.91,189.87,2.8]
[1761001933340,2.67,189.91,189.88,1.75471449]
[1761001938751,2.67,189.91,189.87,2.8]
[1761001948058,7.4082,189.91,189.86,1.75471449]
[1761001948258,2.65,189.9,189.86,4.41471449]
[1761001949152,2.65,189.9,189.87,2.66]
[1761001950959,2.65,189.89,189.83,1.75471449]
[1761001951646,2.65,189.87,189.83,4.41471449]
[1761001952352,2.65,189.87,189.84,2.66]
[1761001958172,9.14301449,189.9,189.84,2.66]
[1761001958962,7.3885,189.89,189.84,2.66]
[1761001959556,2.65,189.88,189.84,2.66]
[1761001961568,4.7385,189.89,189.84,2.66]
[1761001961770,7.3885,189.89,189.84,2.66]
[1761001962066,124.91540404,190.2,189.87,2.66]
[1761001962067,4.88861552,189.97,189.87,2.66]
[1761001962368,2.65,190.0,189.96,5.4056679]
[1761001962565,2.65,190.0,189.96,2.7456679]
[1761001962766,2.65,190.0,189.93,4.7373]
[1761001962767,2.65,190.04,189.99,2.7456679]
[1761001962968,2.65,190.04,189.99,5.4056679]
[1761001963169,2.65,190.04,190.0,2.66]
[1761001963466,2.65,190.04,190.0,2.7456679]
[1761001965462,2.65,190.04,189.97,2.66]
[1761001966864,2.65,190.06,189.93,2.66]
[1761001967169,2.65,190.05,189.93,2.66]
[1761001967664,2.7456679,190.03,189.93,2.66]
[1761001967870,2.65,190.02,189.93,2.66]
[1761001968064,2.65,190.01,189.93,2.66]
[1761001969970,2.65,190.01,189.93,4.7373]
[1761001970171,2.65,190.01,189.94,2.66]
[1761001971871,2.65,190.01,189.95,2.66]
[1761001972071,4.7348,190.04,189.95,2.66]
[1761001972372,7.3848,190.04,189.95,2.66]
[1761001972975,7.3848,190.04,189.96,4.7365]
[1761001973271,7.3848,190.04,189.97,2.66]
[1761001974267,4.7348,190.04,189.97,2.66]
[1761001974475,2.65,190.02,189.97,2.66]
[1761001975767,2.65,190.01,189.94,7.3972]
[1761001977371,2.63,190.0,189.94,2.66]
[1761001979371,7.366,190.0,189.94,2.66]
[1761001979576,2.63,189.99,189.91,7.4679]
[1761001979883,2.63,189.99,189.91,2.73]
[1761001980178,7.3665,189.97,189.9,2.73]
[1761001981180,2.63,189.97,189.9,2.73]
[1761001981779,4.7371,189.95,189.9,2.73]
[1761001982176,7.3671,189.95,189.9,2.73]
[1761001984180,4.7371,189.95,189.9,2.73]
[1761001984380,2.63,189.94,189.9,2.73]
[1761001985184,2.63,189.93,189.87,2.73]
[1761001985679,2.63,189.93,189.87,7.4688]
[1761001986676,4.7368,189.96,189.89,2.73]
[1761001986876,7.3668,189.96,189.89,2.73]
[1761001987279,2.63,189.95,189.89,2.73]
[1761001987678,2.63,189.95,189.89,7.4682]
[1761001987980,2.63,189.95,189.9,2.73]
[1761001989476,2.63,189.95,189.9,7.4681]
[1761001989685,2.7456679,189.98,189.91,2.73]
[1761001989884,7.3664,189.98,189.91,2.73]
[1761001990191,7.3664,189.98,189.92,7.4676]
[1761001990192,2.63,189.98,189.92,7.4676]
[1761001992082,2.63,189.97,189.84,4.92055139]
[1761001992281,2.63,189.97,189.86,2.73]
[1761001992878,7.3671,189.95,189.88,2.73]
[1761001993288,2.63,189.94,189.88,2.73]
[1761001995791,7.3673,189.94,189.88,2.73]
[1761001997893,7.3673,189.94,189.88,7.4686]
[1761001998496,7.3673,189.94,189.88,7.3986]
[1761001999190,4.7369,189.96,189.9,2.66]
[1761001999490,4.7369,189.96,189.9,4.7381]
[1761001999693,4.7369,189.96,189.91,2.66]
[1761002000594,2.84,189.95,189.91,2.66]
[1761002001387,2.84,189.94,189.91,2.66]
[1761002006791,4.7371,189.95,189.91,2.66]
[1761002007397,7.5771,189.95,189.91,2.66]
[1761002009199,4.7366,189.97,189.91,2.66]
[1761002009498,7.5266,189.97,189.91,2.66]
[1761002010398,2.79,189.95,189.91,2.66]
[1761002014206,7.5264,189.98,189.91,2.66]
[1761002014407,4.7364,189.98,189.91,2.66]
[1761002014700,2.79,189.97,189.91,2.66]
[1761002015290,7.5265,189.97,189.91,2.66]
[1761002015496,2.79,189.96,189.91,2.66]
[1761002017306,4.7361,189.99,189.92,2.69]
[1761002017803,2.79,189.98,189.92,2.69]
[1761002018003,7.5263,189.98,189.92,7.4276]
[1761002019113,2.79,189.97,189.92,7.4276]
[1761002019508,2.79,189.97,189.93,2.69]
[1761002022702,4.88861552,190.01,189.94,2.69]
[1761002022703,4.7359,190.0,189.94,2.69]
[1761002022906,7.5259,190.0,189.94,2.69]
[1761002024905,7.5259,190.0,189.95,1.75592303]
[1761002025417,2.79,189.99,189.96,2.69]
[1761002026314,2.79,190.01,189.96,2.69]
[1761002027018,2.79,190.0,189.96,2.69]
[1761002036113,2.79,190.0,189.97,1.75592303]
[1761002036320,2.79,190.0,189.97,4.44592303]
[1761002040728,2.79,190.0,189.98,2.79]
[1761002043122,2.79,190.0,189.96,2.79]
[1761002043318,1.75592303,189.98,189.93,2.79]
[1761002043519,2.62,189.97,189.93,2.79]
[1761002044028,2.62,189.95,189.91,2.79]
[1761002046526,4.37592303,189.95,189.91,2.79]
[1761002046731,2.62,189.94,189.91,2.79]
[1761002049926,2.62,189.94,189.9,4.92055139]
[1761002049927,1.75592303,189.93,189.9,4.92055139]
[1761002050127,2.62,189.9,189.83,4.92055139]
[1761002050329,1.75592303,189.85,189.82,2.79]
[1761002050633,4.37592303,189.85,189.82,2.79]
[1761002052232,2.62,189.84,189.82,2.79]
[1761002053035,2.62,189.84,189.8,2.79]
[1761002053631,2.62,189.84,189.78,2.79]
[1761002053632,2.62,189.82,189.78,2.79]
[1761002053836,4.7399,189.84,189.78,2.79]
[1761002053837,1.75592303,189.81,189.78,2.79]
[1761002054030,4.37592303,189.81,189.78,2.79]
[1761002054631,1.75592303,189.81,189.78,2.79]
[1761002054827,1.75592303,189.83,189.78,2.79]
[1761002055032,2.62,189.82,189.78,2.79]
[1761002059840,2.62,189.82,189.79,2.68]
[1761002060040,2.85,189.87,189.8,2.68]
[1761002061057,7.5891,189.87,189.8,7.4206]
[1761002061647,7.5891,189.87,189.81,2.68]
[1761002062145,2.85,189.86,189.81,2.68]
[1761002064852,9.4746,189.94,189.72,6.51516623]
[1761002064853,2.85,189.89,189.83,1.75592303]
[1761002065053,2.85,189.89,189.84,2.68]
[1761002071052,2.68,189.88,189.84,2.68]
[1761002072456,2.68,189.89,189.84,2.68]
[1761002072646,2.68,189.89,189.85,2.64]
[1761002074653,2.68,189.92,189.86,4.39592303]
[1761002076048,7.4178,189.92,189.87,2.64]
[1761002077458,2.68,189.92,189.87,2.64]
[1761002077960,6.49322303,189.94,189.87,2.64]
[1761002078146,4.7373,189.94,189.88,1.75592303]
[1761002078353,2.68,189.93,189.89,2.64]
[1761002082562,2.68,189.92,189.86,2.64]
[1761002082756,2.74436962,189.92,189.82,2.64]
[1761002082958,2.68,189.91,189.82,2.64]
[1761002083959,4.7381,189.91,189.83,4.7399]
[1761002084160,2.68,189.9,189.84,2.64]
[1761002085265,2.68,189.89,189.84,2.64]
[1761002085759,2.68,189.9,189.84,2.64]
[1761002086966,7.4183,189.9,189.84,7.3796]
[1761002089160,7.4183,189.9,189.85,4.7393]
[1761002089364,2.68,189.9,189.86,2.64]
[1761002089758,4.7379,189.92,189.86,2.64]
[1761002090062,4.7373,189.94,189.88,2.64]
[1761002090863,4.7373,189.94,189.88,7.3786]
[1761002091058,2.68,189.95,189.89,2.64]
[1761002091754,2.68,189.95,189.9,2.64]
[1761002092366,2.74436962,189.96,189.91,2.64]
[1761002092572,5.42436962,189.96,189.91,2.64]
[1761002092763,2.68,189.95,189.91,2.64]
[1761002098073,2.74436962,189.96,189.91,2.64]
[1761002098268,2.9,189.95,189.91,2.64]
[1761002102775,7.6372,189.95,189.86,4.739]
[1761002102972,2.9,189.94,189.88,2.83]
[1761002103372,2.9,189.92,189.85,4.7393]
[1761002103575,2.9,189.92,189.85,2.83]
[1761002104071,7.48196962,189.93,189.87,2.83]
[1761002105284,10.38196962,189.93,189.87,2.83]
[1761002105780,2.9,189.92,189.87,2.83]
[1761002107081,7.6379,189.92,189.87,2.83]
[1761002107282,2.9,189.91,189.87,2.83]
[1761002108083,2.9,189.9,189.87,2.83]
[1761002109483,5.64436962,189.93,189.87,2.83]
[1761002109677,2.9,189.92,189.87,2.83]
[1761002109874,4.7381,189.91,189.87,2.83]
[1761002110084,5.64436962,189.9,189.85,2.83]
[1761002110386,2.74436962,189.9,189.85,2.83]
[1761002110588,2.9,189.86,189.81,2.83]
[1761002110886,2.9,189.83,189.77,2.83]
[1761002111185,2.74436962,189.84,189.77,2.83]
[1761002111779,2.74436962,189.84,189.78,4.7411]
[1761002111983,2.74436962,189.84,189.78,7.5711]
[1761002112678,5.64436962,189.84,189.8,2.83]
[1761002113078,5.64436962,189.84,189.79,4.7408]
[1761002113079,2.9,189.83,189.76,2.83]
[1761002113988,2.9,189.83,189.78,2.83]
[1761002114988,2.9,189.83,189.78,4.7411]
[1761002115190,2.9,189.83,189.79,2.83]
[1761002126794,2.9,189.83,189.79,2.91]
[1761002128792,2.9,189.83,189.79,7.6508]
[1761002128994,2.88,189.86,189.8,2.87]
[1761002130103,2.88,189.86,189.81,2.87]
[1761002133599,2.88,189.86,189.82,2.87]
[1761002134807,2.88,189.86,189.79,4.7408]
[1761002134808,7.6192,189.86,189.79,4.7408]
[1761002135002,2.88,189.85,189.8,2.87]
[1761002136002,2.88,189.85,189.8,4.7406]
[1761002136206,2.88,189.85,189.81,2.87]
[1761002147915,6.4971403,189.88,189.82,2.87]
[1761002148214,2.88,189.87,189.82,2.87]
[1761002148419,2.88,189.85,189.82,2.87]
[1761002153115,4.7393,189.86,189.82,2.87]
[1761002153417,2.88,189.85,189.82,2.87]
[1761002165121,1.7582403,189.84,189.78,6.51516623]
[1761002165422,2.63,189.83,189.77,6.51516623]
[1761002165621,4.74,189.83,189.78,4.7411]
[1761002165817,2.63,189.82,189.78,7.5711]
[1761002166221,2.63,189.82,189.79,2.83]
[1761002166824,2.63,189.81,189.79,2.83]
[1761002170028,2.63,189.83,189.8,7.5706]
[1761002170325,2.63,189.83,189.78,2.83]
[1761002171233,2.63,189.82,189.78,7.571]
[1761002172333,2.63,189.82,189.79,4.7409]
[1761002172834,2.63,189.82,189.79,7.5709]
[1761002173534,2.63,189.83,189.8,2.83]
[1761002175029,1.7582403,189.82,189.76,14.08666623]
[1761002175220,1.7582403,189.77,189.73,2.83]
[1761002175428,2.63,189.76,189.72,9.39516623]
[1761002176129,2.63,189.76,189.71,14.13796623]
[1761002176336,2.63,189.76,189.71,7.6228]
[1761002177131,6.4998403,189.77,189.67,11.53098965]
[1761002177132,4.4982403,189.77,189.73,2.88]
[1761002177332,2.74,189.77,189.73,2.88]
[1761002177533,4.4982403,189.78,189.73,2.88]
[1761002178236,2.74,189.77,189.73,2.88]
[1761002178632,1.7582403,189.78,189.73,2.88]
[1761002178826,4.4982403,189.78,189.73,2.88]
[1761002179029,2.74,189.78,189.75,2.88]
[1761002179835,4.4982403,189.8,189.75,2.88]
[1761002180040,2.74,189.83,189.76,2.88]
[1761002180339,4.4982403,189.83,189.76,2.88]
[1761002181131,2.74,189.83,189.77,1.7582403]
[1761002181329,2.74,189.83,189.77,4.6382403]
[1761002181926,2.74,189.83,189.78,4.7411]
[1761002182132,2.74,189.83,189.78,7.6211]
[1761002182331,2.74,189.83,189.79,2.88]
[1761002184538,2.74,189.83,189.79,1.7582403]
[1761002184731,2.74,189.83,189.8,2.88]
[1761002187446,7.5793,189.86,189.8,2.88]
[1761002188945,7.5793,189.86,189.8,7.6206]
[1761002189148,7.5793,189.86,189.81,2.78]
[1761002189344,6.15858,189.88,189.81,2.78]
[1761002189651,2.84,189.86,189.81,2.78]
[1761002189846,2.84,189.86,189.82,2.78]
[1761002191636,2.84,189.86,189.82,7.5201]
[1761002191841,2.84,189.86,189.83,2.78]
[1761002192747,4.25978,189.88,189.83,2.78]
[1761002192948,2.84,189.87,189.83,2.78]
[1761002199755,2.84,189.87,189.82,7.5201]
[1761002200365,2.84,189.87,189.82,4.7401]
[1761002200565,1.7582403,189.86,189.82,4.7401]
[1761002200757,2.84,189.85,189.82,4.7401]
[1761002201158,2.84,189.85,189.82,7.5201]
[1761002204064,2.84,189.85,189.83,2.78]
[1761002209570,2.84,189.87,189.83,2.78]
[1761002210672,2.84,189.87,189.84,2.78]
[1761002214378,4.25978,189.88,189.85,2.78]
[1761002214876,1.41978,189.88,189.86,2.78]
[1761002215977,1.41978,189.88,189.86,7.5191]
[1761002216176,1.41978,189.88,189.87,2.78]
[1761002216379,5.58671598,189.94,189.87,2.78]
[1761002217586,5.58671598,189.94,189.91,2.73]
[1761002218969,2.84,189.94,189.91,2.73]
[1761002219868,2.64,189.96,189.92,2.73]
[1761002221374,2.64,189.96,189.88,2.73]
[1761002221573,2.64,189.92,189.88,2.73]
[1761002222183,2.64,189.92,189.85,2.73]
[1761002223981,7.3778,189.92,189.85,7.4693]
[1761002224181,2.64,189.91,189.85,7.4693]
[1761002226385,2.64,189.89,189.82,2.73]
[1761002226678,2.74671598,189.87,189.82,2.73]
[1761002226870,2.64,189.86,189.82,2.73]
[1761002227275,2.64,189.86,189.82,7.47]
[1761002227477,2.64,189.86,189.83,2.73]
[1761002229983,2.64,189.86,189.82,4.74]
[1761002230390,2.64,189.86,189.8,7.4706]
[1761002231675,2.64,189.86,189.8,4.7406]
[1761002231881,2.64,189.86,189.81,4.7403]
[1761002232177,2.64,189.86,189.82,2.73]
[1761002232890,2.64,189.86,189.83,2.73]
[1761002233185,7.3786,189.89,189.83,2.73]
[1761002233991,7.3786,189.89,189.83,7.4698]
[1761002234292,7.3786,189.89,189.84,2.73]
[1761002234483,2.74671598,189.9,189.78,2.73]
[1761002234787,6.53469527,189.95,189.78,2.73]
[1761002234788,2.74671598,189.93,189.81,2.73]
[1761002235191,2.64,189.94,189.83,2.73]
[1761002236094,2.64,189.94,189.88,7.6486]
[1761002236283,2.64,189.94,189.89,2.91]
[1761002239085,2.64,189.94,189.9,2.91]
[1761002246994,4.7371,189.95,189.9,2.91]
[1761002247197,2.85,189.94,189.9,2.91]
[1761002250513,7.4466,189.97,189.9,2.91]
[1761002250802,2.71,189.96,189.9,2.91]
[1761002252104,2.71,189.95,189.9,2.91]
[1761002256605,2.71,189.95,189.91,2.71]
[1761002256815,7.4464,189.98,189.91,2.71]
[1761002257107,2.71,189.98,189.91,2.71]
[1761002257504,2.71,189.98,189.88,2.74671598]
[1761002257696,2.71,190.01,189.92,2.71]
[1761002259097,7.4456,190.01,189.95,7.4469]
[1761002260712,2.71,190.0,189.95,7.4469]
[1761002260902,2.71,190.0,189.96,2.71]
[1761002264805,4.46526201,190.01,189.96,2.71]
[1761002267116,2.71,189.96,189.93,4.7373]
[1761002267314,4.46526201,189.97,189.94,2.71]
[1761002269625,1.75526201,189.97,189.94,2.71]
[1761002270521,1.75526201,189.97,189.95,2.71]
[1761002270918,1.75526201,189.99,189.95,2.71]
[1761002271125,4.46526201,189.99,189.95,2.71]
[1761002272621,2.71,189.98,189.95,2.71]
[1761002278030,1.75526201,189.99,189.95,4.7369]
[1761002278231,1.75526201,189.99,189.96,2.75]
[1761002279236,1.75526201,189.99,189.96,4.7366]
[1761002279436,1.75526201,189.99,189.97,2.75]
[1761002280445,2.82,190.0,189.97,2.75]
[1761002282629,4.57526201,189.99,189.95,2.75]
[1761002283431,1.75526201,189.99,189.95,2.75]
[1761002283644,1.75526201,190.04,189.96,2.75]
[1761002283942,1.75526201,190.04,189.96,1.75526201]
[1761002284146,1.75526201,190.04,189.97,2.75]
[1761002284339,2.82,190.05,190.0,2.75]
[1761002285649,2.82,190.05,190.01,2.75]
[1761002287255,2.82,190.08,190.02,1.75526201]
[1761002287447,2.82,190.08,190.03,2.75]
[1761002287838,2.82,190.08,190.02,1.75526201]
[1761002288045,1.75526201,190.05,190.0,4.7356]
[1761002288247,2.82,190.04,190.0,7.4856]
[1761002288954,2.82,190.04,189.98,6.49136201]
[1761002289145,2.82,190.04,189.98,1.75526201]
[1761002289348,2.82,190.04,189.99,2.75]
[1761002291048,2.82,190.04,190.0,7.4856]
[1761002292149,2.82,190.04,190.0,4.7356]
[1761002294952,2.82,190.0,189.97,2.75]
[1761002295153,2.82,190.0,189.93,2.75]
[1761002295357,2.82,190.0,189.95,4.7369]
[1761002295556,2.82,189.98,189.95,4.7369]
[1761002295964,1.75526201,189.99,189.96,2.74]
[1761002296455,2.82,189.98,189.96,2.74]
[1761002296662,2.82,189.98,189.95,7.4769]
[1761002299565,2.82,189.96,189.88,2.74]
[1761002299754,4.57526201,189.93,189.88,2.74]
[1761002301054,4.57526201,189.93,189.89,7.4783]
[1761002301255,4.90022415,190.0,189.84,6.51516623]
[1761002301256,1.75526201,189.91,189.86,2.74]
[1761002301455,4.57526201,189.91,189.86,2.74]
[1761002301961,4.57526201,189.91,189.87,7.4788]
[1761002302665,4.57526201,189.91,189.88,7.4785]
[1761002302860,4.57526201,189.93,189.88,2.74]
[1761002303362,2.82,189.92,189.88,2.74]
[1761002303964,2.82,189.92,189.89,4.7383]
[1761002304164,2.82,189.92,189.89,7.4783]
[1761002306767,1.75526201,189.95,189.91,2.74]
[1761002306964,4.57526201,189.95,189.91,2.74]
[1761002307171,1.75526201,189.95,189.91,7.4778]
[1761002307367,2.82,189.94,189.91,7.4778]
[1761002308169,4.7366,189.97,189.92,2.78]
[1761002308473,4.50526201,189.96,189.92,2.78]
[1761002311175,2.75,189.96,189.92,2.78]
[1761002314570,2.75,189.96,189.89,6.49366201]
[1761002314777,2.75,189.95,189.89,4.7384]
[1761002315166,2.75,189.94,189.89,4.7384]
[1761002315975,2.75,189.94,189.89,7.5184]
[1761002316475,2.75,189.94,189.89,4.7384]
[1761002316775,2.75,189.94,189.9,2.78]
[1761002321885,2.75,189.94,189.9,7.5181]
[1761002323986,2.75,189.94,189.9,4.7381]
[1761002324287,2.75,189.94,189.91,2.78]
[1761002325380,2.75,189.94,189.9,4.7381]
[1761002325586,2.75,189.94,189.9,7.5181]
[1761002328481,2.75,189.94,189.91,2.78]
[1761002329175,7.4866,189.97,189.92,2.78]
[1761002329680,7.4866,189.97,189.93,2.78]
[1761002331187,2.75,189.96,189.93,2.78]
[1761002334288,2.75,189.96,189.92,4.7376]
[1761002334477,7.4868,189.96,189.91,2.78]
[1761002334677,2.75,189.95,189.91,2.78]
[1761002334884,4.7368,189.96,189.91,2.78]
[1761002335191,2.75,189.95,189.91,2.78]
[1761002335990,2.75,189.95,189.91,4.7378]
[1761002336190,2.75,189.95,189.92,2.78]
[1761002339080,4.7368,189.96,189.92,2.78]
[1761002339292,7.4568,189.96,189.92,2.78]
[1761002339492,2.72,189.95,189.92,2.78]
[1761002340901,4.7368,189.96,189.89,2.82]
[1761002340902,2.72,189.94,189.89,2.82]
[1761002341090,2.72,189.94,189.86,2.82]
[1761002341990,2.72,189.91,189.88,2.82]
[1761002342989,2.72,189.9,189.85,7.5594]
[1761002343386,2.72,189.9,189.86,2.82]
[1761002344089,2.72,189.9,189.87,2.82]
[1761002344392,2.72,189.94,189.87,2.82]
[1761002345099,7.4578,189.92,189.87,2.82]
[1761002345282,2.72,189.91,189.87,2.82]
[1761002347296,7.4573,189.94,189.88,2.82]
[1761002347794,2.72,189.93,189.88,2.82]
[1761002348697,2.72,189.92,189.88,2.82]
[1761002349693,2.72,189.92,189.87,4.7389]
[1761002350198,2.72,189.92,189.87,7.5589]
[1761002352089,7.64441078,189.95,189.87,2.82]
[1761002352288,2.72,189.94,189.85,7.5594]
[1761002352894,4.7383,189.9,189.85,7.5594]
[1761002353094,2.72,189.89,189.85,7.5594]
[1761002355807,2.64,189.88,189.85,2.82]
[1761002356612,2.64,189.87,189.84,2.86]
[1761002358709,2.64,189.86,189.81,2.86]
[1761002359912,2.64,189.86,189.81,7.6003]
[1761002360113,2.64,189.86,189.82,2.86]
[1761002360419,2.64,189.85,189.79,2.86]
[1761002362210,2.64,189.83,189.8,2.86]
[1761002363115,7.3801,189.83,189.8,2.86]
[1761002363308,2.64,189.82,189.8,2.86]
[1761002363516,4.7401,189.83,189.8,2.86]
[1761002363716,7.3801,189.83,189.8,2.86]
[1761002363922,2.64,189.82,189.78,4.7411]
[1761002364112,2.64,189.82,189.79,2.86]
[1761002381739,7.3994,189.86,189.77,2.74418663]
[1761002381935,7.3994,189.86,189.78,2.89]
[1761002382333,2.66,189.85,189.82,2.89]
[1761002382645,7.3988,189.88,189.82,2.89]
[1761002384040,7.3988,189.88,189.83,2.89]
[1761002384233,2.66,189.87,189.83,2.89]
[1761002384436,2.66,189.89,189.83,2.89]
[1761002384641,2.66,189.89,189.85,2.89]
[1761002387944,2.66,189.88,189.85,2.89]
[1761002388146,4.7386,189.89,189.85,2.89]
[1761002388443,7.3986,189.89,189.85,2.89]
[1761002390444,2.66,189.88,189.85,2.89]
[1761002392943,9.15545185,189.91,189.85,2.89]
[1761002393146,7.3981,189.91,189.85,2.89]
[1761002394043,2.66,189.9,189.85,2.89]
[1761002394648,7.3983,189.9,189.85,2.89]
[1761002394841,2.66,189.89,189.85,2.89]
[1761002400746,2.66,189.89,189.85,4.7394]
[1761002401051,2.66,189.89,189.86,2.87]
[1761002401846,2.83,189.93,189.88,1.75735185]
[1761002402053,2.83,189.93,189.89,2.87]
[1761002403053,2.83,189.93,189.9,2.87]
[1761002405646,2.83,189.93,189.87,2.87]
[1761002405854,2.83,189.91,189.87,2.87]
[1761002406251,2.83,189.91,189.88,4.7386]
[1761002406554,2.83,189.91,189.89,2.87]
[1761002408558,1.75735185,189.94,189.89,2.87]